Workbook

Sheet Application 2
A1: Nodal SLDC Approval No | B1: Approval Date | C1: Customer Application No. | D1: Application Date | E1: Period of Transaction | F1: Customer Name | G1: HTSC No | H1: EDC CUSTOMER | I1: Sanction Demand | J1: Name of Sub-Station (Trans- Drawee) | K1: Name of Sub-Station (Dist- Drawee) | L1: Voltage Level (Transmission -Drawee) | M1: Voltage Level (Distribution -Drawee) | N1: EWA Quantum in Injection end(MW*) Peak Slots | O1: EWA Quantum in Injection end(MW*) | P1: OA Quantum in Injection End Peak Slots | Q1: OA Quantum in Injection End Non-Peak Slots | R1: Receipt No | S1: Receipt dt | T1: Consumer Location | U1: Name of Entity (Injecting) | V1: Utility in which it is Embedded (Injecting) | W1: Name of Sub-Station (Trans - Injecting) | X1: Name of Sub-Station (Distribution - Injecting) | Y1: Voltage Level (Transmission -Injecting) | Z1: Voltage Level (Distribution -Injecting) | AA1: Generator Location | AB1: Open Access Sought for (Period From date ) | AC1: Open Access Sought for (Period To date ) | AD1: CE / Distribution | AE1: SE/Opn | AF1: EE/LD | AG1: EDC - Generator | AH1: Reference No | AI1: Wheeling date | AJ1: EWA upto | AK1: Registeration code | AL1: Consumer Email ID | AM1: Generator Email ID | AN1: Generator Contact No. | AP1: Tr.Chargescharges | AQ1: Scheduling charges | AR1: System operation charges | AS1: Wheeling charges | AT1: Total
A2: 821 | C2: India Cements letter dt 04/05/21 | E2: 10/12/2025 to 31/12/2025 | F2: M/s The India cements Ltd, Dalavoi Village, Ariyalur | G2: 69094400042 | H2: Perambalur | I2: 20000 KVA | J2: Eachangadu 230 KV Auto SS/110KV SS | K2: N/A | L2: 110 KV | M2: N/A | N2: 13.666 | O2: 13.666 | P2: 9.887 | Q2: 9.887 | R2: SBI COLLECT | S2: 1900-01-04 | T2: M/s The India cements Ltd, Dalavoi Village, Sendurai(TK), Ariyalur(DT) - 621730 | U2: M/s The India cements Ltd | V2: TANTRANSCO | W2: 110 KV Thalaiyuthu Grid SS | X2: N/A | Y2: 110KV | Z2: N/A | AA2: M/s The India cements Ltd,No.93,Coromandal towers,Santhome High Road, Karpagam Avenue,Raja Anamalaipuram,Chennai -600028 | AB2: 2021-06-01 | AC2: 2021-06-30 | AD2: Trichy | AE2: Trichy | AF2: Madurai | AG2: Tirunelveli | AH2: Lr.No.CE/GO/SE/CO/STU/ EE/OA/AEE 1/F.ICL /R00/D. 344 /21, dt. 22 .03.2021 | AI2: 2021-03-22 | AJ2: 2024-03-31 | AL2: eeabt@tnebnet.org | AM2: eeabt@tnebnet.org | AP2: =22*24*P2*241.81 -> 1262329.448 | AQ2: =209*22 -> 4598 | AR2: =(IF((24*4.01*P2)>750,750,(24*4.01*P2)))*22 -> 16500 | AT2: =SUM(AP2:AS2) -> 1283427.448 | AW2: 1189582 | BT2: 323 | BV2: 42675 | BW2: 43190 | BX2: 0.625 | BY2: 0.625
A3: 822 | C3: India Cements letter dt 04/05/21 | E3: 10/12/2025 to 31/12/2025 | F3: M/s The India cements Ltd, Sankari west (post) | G3: 69094220013 | H3: Mettur | I3: 11800KVA | J3: 110/22 KV SS, Sankari | K3: N/A | L3: 110 KV | M3: N/A | N3: 6.194 | O3: 6.194 | P3: 4.163 | Q3: 4.163 | R3: SBI COLLECT | S3: 2021-05-04 | T3: M/s The India cements Ltd, Sankari west(post), Salem District -637303 | U3: M/s The India cements Ltd | V3: TANTRANSCO | W3: 110 KV Thalaiyuthu Grid SS | X3: N/A | Y3: 110KV | Z3: N/A | AA3: M/s The India cements Ltd,No.93,Coromandal towers,Santhome High Road, Karpagam Avenue,Raja Anamalaipuram,Chennai -600028 | AB3: 2021-06-01 | AC3: 2021-06-30 | AD3: Erode | AE3: Salem | AF3: Madurai | AG3: Tirunelveli | AH3: Lr.No.CE/GO/SE/CO/STU/ EE/OA/AEE 1/F.ICL /R00/D. 344 /21, dt. 22 .03.2021 | AI3: 2021-03-22 | AJ3: 2024-03-31 | AP3: =22*24*P3*241.81 -> 531513.8558 | AQ3: =209*22 -> 4598 | AR3: =(IF((24*4.01*P3)>750,750,(24*4.01*P3)))*22 -> 8814.23664 | AT3: =SUM(AP3:AS3) -> 544926.0925
E4: 16/12/2025 to 31/12/2025 | F4: M/s Ultra Tech Cement Limited | G4: 69094400053 | H4: Perambalur | J4: 110KV | N4: 4.787 | O4: 4.787 | P4: 4.683 | Q4: 4.683 | AP4: =16*24*P4*241.81 -> 434840.1523 | AQ4: =209*16 -> 3344 | AR4: =(IF((24*4.01*P4)>750,750,(24*4.01*P4)))*16 -> 7211.07072 | AT4: 445395.223
M5: Total | N5: =SUM(N2:N4) -> 24.647 | O5: =SUM(O2:O4) -> 24.647 | P5: 18.733 | Q5: =SUM(Q2:Q4) -> 18.733 | AO5: Total | AP5: =+SUM(AP2:AP4) -> 2228683.456 | AQ5: =+SUM(AQ2:AQ4) -> 12540 | AR5: =+SUM(AR2:AR4) -> 32525.30736 | AT5: =SUM(AT2:AT4) -> 2273748.764
F7: M/s The India cements Ltd, Dalavoi Village, Ariyalur | G7: 69094400042 | H7: Perambalur | AP7: =13*24*P7*241.81 -> 0 | AQ7: =209*13 -> 2717 | AR7: =(IF((24*4.01*P7)>750,750,(24*4.01*P7)))*13 -> 0 | AT7: =SUM(AP7:AS7) -> 2717 | AW7: 379273.44 | AX7: =AT7-AW7 -> -376556.44
E9: 01/11/2025 to 30/11/2025 | F9: M/s The India cements Ltd, Dalavoi Village, Ariyalur | G9: 69094400042 | H9: Perambalur
E10: 01/11/2025 to 30/11/2025 | F10: M/s The India cements Ltd, Sankari west (post) | G10: 69094220013 | H10: Mettur
E11: 01/11/2025 to 30/11/2025 | F11: M/s Ultra Tech Cement Limited | G11: 69094400053 | H11: Perambalur
O12: Total | P12: =SUM(P9:P11) -> 0 | Q12: =SUM(Q9:Q11) -> 0

Sheet cancellation note
A1: TANTRANSCO
P2: Office of the Superintending Engineer,
P3: Open Access & Co Ordination,
O4: Chennai-2
A5: NOTE :
B7: Sub: Elecy – OPG Power Gen Unit 1- CPP wheeling to HT Consumers -Short Term Open Access Approval - cancellation Requested – Reg.
B9: Ref: | C9: Company's Lr Ref. | D9: ='Application 2'!#REF! -> 
A10: ******
A11: I | B11: The consolidated STOA applications of the captive users received from M/s OPG Power Gen Unit 1 vide ref. cited is put up for cancellation of STOA approval from 13/06/2018
B14: Sl.No. | C14: Name of applicant | D14: HTSC | E14: EDC | F14: Energy Wheeling Approval (EWA) | I14: SLDC Approval No. | J14: Open Access approved details | N14: Cancellation request from | O14: Processing fee of Rs. 5000 Paid vide
F15: Date | G15: Peak MW | H15: Remaining Hrs MW | J15: From date | K15: To date | L15: Qtm MW Peak Hr | M15: Qtm MW Remaining Hrs | O15: receipt ref. | P15: Dated
B16: 1 | C16: ='Application 2'!#REF! ->  | D16: ='Application 2'!#REF! ->  | E16: ='Application 2'!#REF! ->  | F16: ='Application 2'!#REF! ->  | G16: ='Application 2'!#REF! ->  | H16: ='Application 2'!#REF! ->  | I16: ='Application 2'!#REF! ->  | J16: ='Application 2'!#REF! ->  | K16: ='Application 2'!#REF! ->  | L16: ='Application 2'!#REF! ->  | M16: ='Application 2'!#REF! ->  | N16: ='Application 2'!#REF! ->  | O16: ='Application 2'!#REF! ->  | P16: ='Application 2'!#REF! -> 
B17: 2 | C17: ='Application 2'!#REF! ->  | D17: ='Application 2'!#REF! ->  | E17: ='Application 2'!#REF! ->  | F17: ='Application 2'!#REF! ->  | G17: ='Application 2'!#REF! ->  | H17: ='Application 2'!#REF! ->  | I17: ='Application 2'!#REF! ->  | J17: ='Application 2'!#REF! ->  | K17: ='Application 2'!#REF! ->  | L17: ='Application 2'!#REF! ->  | M17: ='Application 2'!#REF! ->  | N17: ='Application 2'!#REF! ->  | O17: ='Application 2'!#REF! ->  | P17: ='Application 2'!#REF! -> 
C18: Total | L18: =+L17+L16 ->  | M18: =+M17+M16 -> 
A19: II | B19: As the requests are in line with the Hon’ble TNERC’s Intra State Open Access Regulations 2014, it is suggested that the generator’s request may be considered and cancellation of Open Access approval may be granted
C21: For approval please.
C23: On approval, the revised Open Access approval in FORMAT-ST2 will be generated in PDF and uploaded in the SLDC website please.
F27: AEE/ABT | J27: EE/ABT | O27: SE/OA&CO

Sheet note
A1: TANTRANSCO
P2: Office of the Superintending Engineer,
P3: Commercial Operation, Ch-2
A5: NOTE :
B7: Sub: Elecy – Short Term Open Access - M/s The India Cements- approval under CPP wheeling to HT Consumers - approval requested – Reg.
B9: Ref: | C9: =+'Application 2'!C2 -> India Cements letter dt 04/05/21 | D9: dt | E9: ='Application 2'!D2 -> 00:00:00
A10: ******
A11: I | B11: The consolidated STOA applications of the captive users received from M/s The India Cements vide ref. cited is put up for granting approval.
B13: Sl.No. | C13: Name of applicant | D13: HTSC | E13: EDC | F13: Name of Generator | G13: Wheeling approval date | H13: EWA | I13: EWA quantum in MW (incl. of loss) | K13: Open Access approval sought | O13: Processing fee of Rs. 5000 Paid vide | Q13: Approval No.
H14: Period upto | I14: Peak | J14: Remaining Hrs | K14: From date | L14: To date | M14: Peak Hr MW | N14: Remaining Hrs MW | O14: Payment ref.
B15: 1 | C15: ='Application 2'!F2 -> M/s The India cements Ltd, Dalavoi Village, Ariyalur | D15: ='Application 2'!G2 -> 69094400042 | E15: ='Application 2'!H2 -> Perambalur | F15: ='Application 2'!U2 -> M/s The India cements Ltd | G15: ='Application 2'!AI2 -> 2021-03-22 | H15: ='Application 2'!AJ2 -> 2024-03-31 | I15: ='Application 2'!N2 -> 13.666 | J15: ='Application 2'!O2 -> 13.666 | K15: ='Application 2'!AB2 -> 2021-06-01 | L15: ='Application 2'!AC2 -> 2021-06-30 | M15: ='Application 2'!P2 -> 9.887 | N15: ='Application 2'!Q2 -> 9.887 | O15: ='Application 2'!R2 -> SBI COLLECT | P15: =+'Application 2'!S2 -> 1900-01-04 | Q15: ='Application 2'!A2 -> 821
B16: 2 | C16: ='Application 2'!F3 -> M/s The India cements Ltd, Sankari west (post) | D16: ='Application 2'!G3 -> 69094220013 | E16: ='Application 2'!H3 -> Mettur | F16: ='Application 2'!U3 -> M/s The India cements Ltd | G16: ='Application 2'!AI3 -> 2021-03-22 | H16: ='Application 2'!AJ3 -> 2024-03-31 | I16: ='Application 2'!N3 -> 6.194 | J16: ='Application 2'!O3 -> 6.194 | K16: ='Application 2'!AB3 -> 2021-06-01 | L16: ='Application 2'!AC3 -> 2021-06-30 | M16: ='Application 2'!P3 -> 4.163 | N16: ='Application 2'!Q3 -> 4.163 | O16: ='Application 2'!R3 -> SBI COLLECT | P16: =+'Application 2'!S3 -> 2021-05-04 | Q16: ='Application 2'!A3 -> 822
B17: 3 | C17: ='Application 2'!F4 -> M/s Ultra Tech Cement Limited | D17: ='Application 2'!G4 -> 69094400053 | E17: ='Application 2'!H4 -> Perambalur | F17: ='Application 2'!U4 -> 00:00:00 | G17: ='Application 2'!AI4 -> 00:00:00 | H17: ='Application 2'!AJ4 -> 00:00:00 | I17: ='Application 2'!N4 -> 4.787 | J17: ='Application 2'!O4 -> 4.787 | K17: ='Application 2'!AB4 -> 00:00:00 | L17: ='Application 2'!AC4 -> 00:00:00 | M17: ='Application 2'!P4 -> 4.683 | N17: ='Application 2'!Q4 -> 4.683 | O17: ='Application 2'!R4 -> 0 | P17: =+'Application 2'!S4 -> 00:00:00 | Q17: ='Application 2'!A4 -> 0
K18: Total | M18: =M15+M16+M17 -> 18.733 | N18: =N15+N16+N17 -> 18.733
A19: II | B19: As the Open Access approval requests are in line with the Hon’ble TNERC’s Intra State Open Access Regulations 2014, it is suggested that the generator’s request may be considered and approval may be granted
C20: For approval please.
C21: On approval, the Open Access approval/cancellation in FORMAT-ST2 will be generated in PDF and uploaded in the SLDC website please.
I22: =+SUM(I15:I15) -> 13.666 | J22: =+SUM(J15:J15) -> 13.666
C24: AEE/OA | D24: EE/OA | H24: SE/CO | L24: CE/GO
N27: DIR/OPN (a/c)
L32: EWA | M32: 242.064
K33: OA not applied | L33: 3 consumer | M33: 7.418
M34: =+M32-M33 -> 234.646
